fUST/lending_fUST_20240726
["ID","MTS","AMOUNT","RATE_DAILY","PERIOD"]
[333238408,1721963446915,-523.811806,0.00013961,2]
[333238409,1721963446925,-301.067665,0.00013962,2]
[333238410,1721963446935,-301.067665,0.00013962,2]
[333238411,1721963446945,-151.0,0.00013962,2]
[333238412,1721963446955,-151.0,0.00013962,2]
[333238413,1721963446965,-156.534773,0.00013962,2]
[333238414,1721963446978,-156.534773,0.00013962,2]
[333238415,1721963446989,-487.557975,0.00013962,2]
[333238416,1721963446999,-322.490081,0.00013962,2]
[333238417,1721963447010,-487.557975,0.00013962,2]
[333238418,1721963447020,-322.490081,0.00013962,2]
[333238419,1721963447029,-1349.148235,0.00013962,2]
[333238420,1721963447040,-1349.148235,0.00013962,2]
[333238421,1721963447050,-937.508423,0.00013969,2]
[333238422,1721963447059,-937.508423,0.00013969,2]
[333238423,1721963447069,-214.875887,0.00013969,2]
[333238424,1721963447079,-214.875887,0.00013969,2]
[333238425,1721963447088,-500.0,0.00013972,2]
[333238426,1721963447098,-500.0,0.00013972,2]
[333238427,1721963447108,-202.23794551,0.00013972,2]
[333238428,1721963447117,-500.0,0.00013972,2]
[333238429,1721963447128,-500.0,0.00013972,2]
[333238430,1721963447142,-500.0,0.00013972,2]
[333238431,1721963447152,-168.8,0.00013972,2]
[333238434,1721963447162,-500.0,0.00013972,2]
[333238436,1721963447171,-909.58,0.00013972,2]
[333238437,1721963447182,-500.0,0.00013972,2]
[333238438,1721963447192,-500.0,0.00013972,2]
[333238439,1721963447203,-574.95342337,0.00013972,2]
[333238440,1721963447215,-500.0,0.00013972,2]
[333238441,1721963447228,-507.31766967,0.00013972,2]
[333238442,1721963447239,-500.0,0.00013972,2]
[333238443,1721963447250,-500.0,0.00013972,2]
[333238444,1721963447259,-500.0,0.00013972,2]
[333238445,1721963447272,-500.0,0.00013972,2]
[333238446,1721963447285,-572.5,0.00013972,2]
[333238447,1721963447295,-500.0,0.00013972,2]
[333238448,1721963447307,-504.82807091,0.00013972,2]
[333238449,1721963447319,-301.35966032,0.00013972,2]
[333238450,1721963447331,-500.0,0.00013972,2]
[333238451,1721963447342,-500.0,0.00013972,2]
[333238452,1721963447352,-500.0,0.00013972,2]
[333238453,1721963447363,-500.0,0.00013972,2]
[333238454,1721963447374,-1159.04,0.00013972,2]
[333238455,1721963447385,-542.43,0.00013972,2]
[333238456,1721963447401,-864.24,0.00013972,2]
[333238457,1721963447412,-500.0,0.00013972,2]
[333238458,1721963447424,-500.0,0.00013972,2]
[333238459,1721963447436,-500.0,0.00013972,2]
[333238460,1721963447448,-500.0,0.00013972,2]
[333238461,1721963447461,-500.0,0.00013972,2]
[333238462,1721963447474,-500.0,0.00013972,2]
[333238463,1721963447483,-500.0,0.00013972,2]
[333238464,1721963447494,-1140.16,0.00013972,2]
[333238465,1721963447504,-500.0,0.00013972,2]
[333238466,1721963447517,-500.0,0.00013972,2]
[333238467,1721963447527,-500.0,0.00013972,2]
[333238468,1721963447539,-500.0,0.00013972,2]
[333238469,1721963447549,-500.0,0.00013972,2]
[333238470,1721963447559,-500.0,0.00013972,2]
[333238471,1721963447571,-500.0,0.00013972,2]
[333238472,1721963447581,-501.56519349,0.00013972,2]
[333238473,1721963447593,-500.0,0.00013972,2]
[333238474,1721963447605,-500.0,0.00013972,2]
[333238475,1721963447616,-500.0,0.00013972,2]
[333238476,1721963447627,-502.75885268,0.00013972,2]
[333238477,1721963447640,-1165.66,0.00013972,2]
[333238478,1721963447650,-232.56848709,0.00013972,2]
[333238479,1721963447660,-500.0,0.00013972,2]
[333238480,1721963447670,-500.0,0.00013972,2]
[333238481,1721963447679,-500.0,0.00013972,2]
[333238482,1721963447689,-1809.56,0.00013972,2]
[333238484,1721963447700,-500.0,0.00013972,2]
[333238486,1721963447710,-500.0,0.00013972,2]
[333238487,1721963447721,-500.0,0.00013972,2]
[333238488,1721963447731,-500.0,0.00013972,2]
[333238489,1721963447741,-502.70582821,0.00013972,2]
[333238491,1721963447752,-500.0,0.00013972,2]
[333238493,1721963447762,-500.0,0.00013972,2]
[333238495,1721963447772,-989.23,0.00013972,2]
[333238497,1721963447782,-522.08,0.00013972,2]
[333238499,1721963447792,-500.0,0.00013972,2]
[333238501,1721963447802,-500.0,0.00013972,2]
[333238503,1721963447812,-500.0,0.00013972,2]
[333238505,1721963447821,-500.0,0.00013972,2]
[333238507,1721963447831,-510.76,0.00013972,2]
[333238508,1721963447840,-500.0,0.00013972,2]
[333238509,1721963447850,-769.2,0.00013972,2]
[333238510,1721963447859,-248.39280967,0.00013972,2]
[333238511,1721963447877,-330.91326325,0.00013972,2]
[333238512,1721963447888,-500.0,0.00013972,2]
[333238513,1721963447898,-500.0,0.00013972,2]
[333238514,1721963447908,-631.29,0.00013972,2]
[333238515,1721963447917,-824.49,0.00013972,2]
[333238516,1721963447926,-301.067665,0.00013972,2]
[333238517,1721963447936,-500.0,0.00013972,2]
[333238518,1721963447945,-301.067665,0.00013972,2]
[333238519,1721963447955,-500.0,0.00013972,2]
[333238520,1721963447966,-500.0,0.00013972,2]
[333238521,1721963447978,-500.0,0.00013972,2]
[333238522,1721963447988,-503.61262495,0.00013972,2]
[333238523,1721963447998,-500.0,0.00013972,2]
[333238524,1721963448007,-269.10209723,0.00013972,2]
[333238525,1721963448018,-204.302475,0.00013972,2]
[333238526,1721963448028,-500.0,0.00013972,2]
[333238527,1721963448039,-503.07118887,0.00013972,2]
[333238528,1721963448053,-504.62120421,0.00013972,2]
[333238529,1721963448063,-151.0,0.00013972,2]
[333238530,1721963448075,-1093.92,0.00013972,2]
[333238531,1721963448084,-500.0,0.00013972,2]
[333238532,1721963448094,-500.0,0.00013972,2]
[333238533,1721963448104,-500.0,0.00013972,2]
[333238534,1721963448114,-500.0,0.00013972,2]
[333238535,1721963448124,-500.0,0.00013972,2]
[333238536,1721963448133,-500.0,0.00013972,2]
[333238537,1721963448148,-697.73,0.00013972,2]
[333238538,1721963448159,-500.0,0.00013972,2]
[333238539,1721963448168,-500.0,0.00013972,2]
[333238540,1721963448181,-500.0,0.00013972,2]
[333238541,1721963448190,-500.0,0.00013972,2]
[333238542,1721963448199,-1162.93,0.00013972,2]
[333238543,1721963448209,-500.0,0.00013972,2]
[333238544,1721963448219,-500.0,0.00013972,2]
[333238545,1721963448229,-156.534773,0.00013972,2]
[333238546,1721963448239,-156.534773,0.00013972,2]
[333238547,1721963448249,-156.534773,0.00013972,2]
[333238548,1721963448259,-156.534773,0.00013972,2]
[333238549,1721963448270,-121.97510249,0.00013972,2]
[333238550,1721963448692,-516.25,0.00013698,2]
[333238551,1721963448701,-500.0,0.00013698,2]
[333238552,1721963448711,-829.80489751,0.00013972,2]
[333238553,1721963448722,-31.4984786,0.00013972,2]
[333238554,1721963448899,-500.0,0.00013698,2]
[333238555,1721963449068,-500.0,0.00013698,2]
[333238556,1721963449080,-500.0,0.00013698,2]
[333238557,1721963449091,-500.0,0.00013698,2]
[333238558,1721963449100,-212.04466169,0.00013698,2]
[333238559,1721963449110,-500.0,0.00013698,2]
[333238560,1721963449119,-500.0,0.00013698,2]
[333238561,1721963449129,-500.0,0.00013698,2]
[333238562,1721963449141,-500.0,0.00013698,2]
[333238563,1721963449151,-500.0,0.00013698,2]
[333238564,1721963449161,-500.0,0.00013698,2]
[333238565,1721963449170,-500.0,0.00013698,2]
[333238566,1721963449180,-500.0,0.00013698,2]
[333238567,1721963449189,-500.0,0.00013698,2]
[333238568,1721963449199,-500.0,0.00013698,2]
[333238569,1721963449209,-500.0,0.00013698,2]
[333238570,1721963449219,-468.5015214,0.00013972,2]
[333238571,1721963449229,-651.52,0.00013972,2]
[333238572,1721963449240,-590.6625124,0.00013972,2]
[333238573,1721963449250,-500.0,0.00013972,2]
[333238574,1721963449260,-726.41,0.00013972,2]
[333238575,1721963449270,-500.0,0.00013972,2]
[333238576,1721963449280,-500.0,0.00013972,2]
[333238577,1721963449290,-629.81,0.00013972,2]
[333238578,1721963449300,-500.0,0.00013972,2]
[333238579,1721963449310,-1197.1,0.00013972,2]
[333238580,1721963449320,-500.0,0.00013972,2]
[333238581,1721963449332,-500.0,0.00013972,2]
[333238582,1721963449342,-500.0,0.00013972,2]
[333238583,1721963449352,-500.0,0.00013972,2]
[333238584,1721963449363,-500.0,0.00013972,2]
[333238585,1721963449373,-500.0,0.00013972,2]
[333238586,1721963449384,-215.1108203,0.00013972,2]
[333238587,1721963449398,-508.67784078,0.00013972,2]
[333238588,1721963449409,-500.0,0.00013972,2]
[333238589,1721963449419,-567.41,0.00013972,2]
[333238590,1721963449430,-845.63,0.00013972,2]
[333238591,1721963449440,-500.0,0.00013972,2]
[333238592,1721963449450,-500.0,0.00013972,2]
[333238593,1721963449461,-500.0,0.00013972,2]
[333238594,1721963449472,-276.02346293,0.00013972,2]
[333238595,1721963449484,-500.0,0.00013972,2]
[333238596,1721963449495,-487.557975,0.00013972,2]
[333238597,1721963449505,-322.490081,0.00013972,2]
[333238598,1721963449517,-322.490081,0.00013972,2]
[333238599,1721963449528,-487.557975,0.00013972,2]
[333238600,1721963449538,-500.0,0.00013972,2]
[333238601,1721963449548,-322.490081,0.00013972,2]
[333238602,1721963449559,-322.490081,0.00013972,2]
[333238603,1721963449569,-500.0,0.00013972,2]
[333238604,1721963449579,-1076.02,0.00013972,2]
[333238605,1721963449589,-724.44,0.00013972,2]
[333238606,1721963449601,-923.91,0.00013972,2]
[333238607,1721963449612,-500.0,0.00013972,2]
[333238608,1721963449623,-500.0,0.00013972,2]
[333238609,1721963449635,-1279.74,0.00013972,2]
[333238610,1721963449647,-917.6,0.00013972,2]
[333238611,1721963449656,-153.90866964,0.00013972,2]
[333238612,1721963449667,-557.75,0.00013972,2]
[333238613,1721963449677,-748.08,0.00013972,2]
[333238614,1721963449687,-500.0,0.00013972,2]
[333238615,1721963449697,-1414.01,0.00013972,2]
[333238616,1721963449707,-561.886476,0.00013972,2]
[333238617,1721963449716,-561.886476,0.00013972,2]
[333238618,1721963449726,-515.72241009,0.00013972,2]
[333238619,1721963449736,-500.0,0.00013972,2]
[333238620,1721963449747,-561.886476,0.00013972,2]
[333238621,1721963449756,-561.886476,0.00013972,2]
[333238622,1721963449767,-1349.148235,0.00013972,2]
[333238623,1721963449778,-1349.148235,0.00013972,2]
[333238624,1721963449788,-1349.148235,0.00013972,2]
[333238625,1721963449799,-1349.148235,0.00013972,2]
[333238626,1721963449810,-1428.056274,0.00013972,2]
[333238627,1721963449820,-1428.056274,0.00013972,2]
[333238628,1721963449831,-500.0,0.00013972,2]
[333238629,1721963449842,-1428.056274,0.00013972,2]
[333238630,1721963449853,-1428.056274,0.00013972,2]
[333238631,1721963449863,-654.54,0.00013972,2]
[333238632,1721963449874,-500.0,0.00013972,2]
[333238633,1721963449884,-500.0,0.00013972,2]
[333238634,1721963449896,-500.0,0.00013972,2]
[333238635,1721963449906,-512.63854156,0.00013972,2]
[333238636,1721963449917,-500.0,0.00013972,2]
[333238637,1721963449928,-897.89,0.00013972,2]
[333238638,1721963449937,-581.38484147,0.00013972,2]
[333238639,1721963449948,-538.47065565,0.00013972,2]
[333238640,1721963449958,-500.0,0.00013972,2]
[333238641,1721963449970,-594.95,0.00013972,2]
[333238642,1721963449982,-500.0,0.00013972,2]
[333238643,1721963449993,-889.3,0.00013972,2]
[333238644,1721963450003,-500.0,0.00013972,2]
[333238645,1721963450014,-740.14,0.00013972,2]
[333238646,1721963450025,-151.0,0.00013972,2]
[333238647,1721963450034,-151.0,0.00013972,2]
[333238648,1721963450044,-500.0,0.00013972,2]
[333238649,1721963450054,-507.51431982,0.00013972,2]
[333238650,1721963450065,-500.0,0.00013972,2]
[333238651,1721963450076,-510.32522028,0.00013972,2]
[333238652,1721963450089,-500.0,0.00013972,2]
[333238653,1721963450099,-500.0,0.00013972,2]
[333238654,1721963450110,-660.93,0.00013972,2]
[333238655,1721963450120,-507.92105026,0.00013972,2]
[333238656,1721963450130,-1137.1,0.00013972,2]
[333238657,1721963450140,-1165.37,0.00013972,2]
[333238658,1721963450151,-1574.82,0.00013972,2]
[333238659,1721963450161,-1272.79,0.00013972,2]
[333238660,1721963450171,-505.08259757,0.00013972,2]
[333238661,1721963450182,-842.18,0.00013972,2]
[333238662,1721963450191,-2839.49,0.00013972,2]
[333238663,1721963450201,-3111.58,0.00013972,2]
[333238664,1721963450211,-659.16,0.00013972,2]
[333238665,1721963450222,-500.0,0.00013972,2]
[333238666,1721963450231,-760.76,0.00013972,2]
[333238667,1721963450241,-6474.4,0.00013972,2]
[333238668,1721963450251,-1338.08,0.00013972,2]
[333238669,1721963450261,-1083.92,0.00013972,2]
[333238670,1721963450270,-908.98,0.00013972,2]
[333238671,1721963450281,-500.0,0.00013972,2]
[333238672,1721963450292,-500.0,0.00013972,2]
[333238673,1721963450303,-1634.95,0.00013972,2]
[333238674,1721963450314,-500.0,0.00013972,2]
[333238675,1721963450325,-508.33930975,0.00013972,2]
[333238676,1721963450335,-766.26,0.00013972,2]
[333238677,1721963450347,-776.73,0.00013972,2]
[333238678,1721963450357,-500.0,0.00013972,2]
[333238679,1721963450368,-500.0,0.00013972,2]
[333238680,1721963450380,-477.61573352,0.00013972,2]
[333238681,1721963450391,-503.70324006,0.00013972,2]
[333238682,1721963450402,-2357.35,0.00013972,2]
[333238683,1721963450413,-937.508423,0.00013972,2]
[333238684,1721963450424,-937.508423,0.00013972,2]
[333238685,1721963450435,-509.51,0.00013972,2]
[333238686,1721963450444,-937.508423,0.00013972,2]
[333238687,1721963450455,-500.0,0.00013972,2]
[333238688,1721963450465,-937.508423,0.00013972,2]
[333238689,1721963450476,-500.0,0.00013972,2]
[333238690,1721963450487,-1362.6,0.00013972,2]
[333238691,1721963450498,-503.39368086,0.00013972,2]
[333238692,1721963450508,-511.05725269,0.00013972,2]
[333238693,1721963450520,-500.0,0.00013972,2]
[333238694,1721963450532,-574.02,0.00013972,2]
[333238695,1721963450543,-511.53032576,0.00013972,2]
[333238696,1721963450554,-500.0,0.00013972,2]
[333238697,1721963450565,-500.0,0.00013972,2]
[333238698,1721963450576,-804.06,0.00013972,2]
[333238699,1721963450587,-1369.49,0.00013972,2]
[333238700,1721963450598,-500.0,0.00013972,2]
[333238701,1721963450608,-500.0,0.00013972,2]
[333238702,1721963450620,-500.0,0.00013972,2]
[333238703,1721963450632,-500.0,0.00013972,2]
[333238704,1721963450644,-804.07,0.00013972,2]
[333238705,1721963450654,-500.0,0.00013972,2]
[333238706,1721963450664,-500.0,0.00013972,2]
[333238707,1721963450678,-1280.05,0.00013972,2]
[333238708,1721963450688,-214.875887,0.00013972,2]
[333238709,1721963450698,-214.875887,0.00013972,2]
[333238710,1721963450707,-503.69197136,0.00013972,2]
[333238711,1721963450716,-214.875887,0.00013972,2]
[333238712,1721963450725,-214.875887,0.00013972,2]
[333238713,1721963450734,-500.0,0.00013972,2]
[333238714,1721963450744,-578.06,0.00013972,2]
[333238715,1721963450753,-976.12,0.00013972,2]
[333238716,1721963450762,-500.0,0.00013972,2]
[333238717,1721963450771,-1228.84,0.00013972,2]
[333238718,1721963450781,-2193.74,0.00013972,2]
[333238719,1721963450790,-1269.4,0.00013972,2]
[333238720,1721963450801,-500.0,0.00013972,2]
[333238721,1721963450811,-500.0,0.00013972,2]
[333238722,1721963450822,-6841.19,0.00013972,2]
[333238723,1721963450831,-500.0,0.00013972,2]
[333238724,1721963450844,-500.0,0.00013972,2]
[333238725,1721963450857,-737.42,0.00013972,2]
[333238726,1721963450868,-431.82084717,0.00013972,2]
[333238727,1721963450879,-151.0,0.00013972,2]
[333238728,1721963450889,-500.0,0.00013972,2]
[333238729,1721963450899,-1173.52,0.00013972,2]
[333238730,1721963450910,-500.0,0.00013972,2]
[333238731,1721963450920,-263.834437,0.00013972,2]
[333238732,1721963450930,-1733.3,0.00013972,2]
[333238733,1721963450942,-523.811806,0.00013972,2]
[333238734,1721963450953,-523.811806,0.00013972,2]
[333238735,1721963450962,-626.11,0.00013972,2]
[333238736,1721963450974,-500.0,0.00013972,2]
[333238737,1721963450984,-523.811806,0.00013972,2]
[333238738,1721963450994,-523.811806,0.00013972,2]
[333238739,1721963451004,-501.70873884,0.00013972,2]
[333238740,1721963451015,-500.0,0.00013972,2]
[333238741,1721963451026,-767.68,0.00013972,2]
[333238742,1721963451037,-500.0,0.00013972,2]
[333238743,1721963451048,-503.75673307,0.00013972,2]
[333238744,1721963451059,-1234.17,0.00013972,2]
[333238745,1721963451068,-500.0,0.00013972,2]
[333238746,1721963451077,-500.0,0.00013972,2]
[333238747,1721963451087,-500.0,0.00013972,2]
[333238748,1721963451096,-500.0,0.00013972,2]
[333238749,1721963451106,-788.22,0.00013972,2]
[333238750,1721963451115,-510.51566055,0.00013972,2]
[333238751,1721963451124,-500.99528835,0.00013972,2]
[333238752,1721963451136,-7835.74,0.00013972,2]
[333238753,1721963451150,-2455.85,0.00013972,2]
[333238754,1721963451159,-572.37,0.00013972,2]
[333238755,1721963451171,-500.0,0.00013972,2]
[333238756,1721963451180,-544.53,0.00013972,2]
[333238757,1721963451189,-500.0,0.00013972,2]
[333238758,1721963451198,-3318.86,0.00013972,2]
[333238759,1721963451207,-1128.85,0.00013972,2]
[333238760,1721963451216,-4398.22,0.00013972,2]
[333238761,1721963451225,-1174.13,0.00013972,2]
[333238762,1721963451234,-500.0,0.00013972,2]
[333238763,1721963451244,-758.75,0.00013972,2]
[333238764,1721963451253,-500.0,0.00013972,2]
[333238765,1721963451264,-1681.25,0.00013972,2]
[333238766,1721963451275,-500.0,0.00013972,2]
[333238767,1721963451288,-1394.49,0.00013972,2]
[333238768,1721963451301,-500.0,0.00013972,2]
[333238769,1721963451311,-500.0,0.00013972,2]
[333238770,1721963451322,-500.0,0.00013972,2]
[333238771,1721963451332,-500.0,0.00013972,2]
[333238772,1721963451341,-500.0,0.00013972,2]
[333238773,1721963451351,-500.0,0.00013972,2]
[333238774,1721963451360,-151.817,0.00013989,2]
[333238775,1721963451370,-588.015,0.00013989,2]
[333238776,1721963451380,-1409.0,0.00013989,2]
[333238777,1721963451390,-5307.44717969,0.00014023,2]
[333238778,1721963451400,-549.2983123,0.00014103,2]
[333238779,1721963451410,-523.811806,0.00014175,2]
[333238780,1721963451419,-523.811806,0.00014175,2]
[333238781,1721963451429,-367.53930495,0.00014194,2]
[333238782,1721963451439,-21886.68000052,0.00014246,5]
[333238783,1721963451449,-500.0,0.00014246,2]
[333238784,1721963451459,-151.0,0.00014246,2]
[333238785,1721963451470,-151.0,0.00014246,2]
[333238786,1721963451481,-500.0,0.00014246,2]
[333238787,1721963451493,-151.0,0.00014246,2]
[333238788,1721963451504,-500.0,0.00014246,2]
[333238789,1721963451516,-260.26624157,0.00014246,2]
[333238790,1721963451527,-500.0,0.00014246,2]
[333238791,1721963451537,-515.7857069,0.00014246,2]
[333238792,1721963451547,-909.58,0.00014246,2]
[333238793,1721963451559,-502.11127882,0.00014246,2]
[333238794,1721963451570,-500.0,0.00014246,2]
[333238795,1721963451580,-530.81818819,0.00014246,2]
[333238796,1721963451590,-500.0,0.00014246,2]
[333238797,1721963451603,-505.69417326,0.00014246,2]
[333238798,1721963451613,-500.0,0.00014246,2]
[333238799,1721963451625,-500.0,0.00014246,2]
[333238800,1721963451635,-500.0,0.00014246,2]
[333238801,1721963451650,-500.0,0.00014246,2]
[333238802,1721963451664,-1159.04,0.00014246,2]
[333238803,1721963451674,-542.43,0.00014246,2]
[333238804,1721963451685,-864.24,0.00014246,2]
[333238805,1721963451695,-500.0,0.00014246,2]
[333238806,1721963451705,-326.24346062,0.00014246,2]
[333238807,1721963451715,-500.0,0.00014246,2]
[333238808,1721963451725,-500.0,0.00014246,2]
[333238809,1721963451734,-500.0,0.00014246,2]
[333238810,1721963451743,-500.0,0.00014246,2]
[333238811,1721963451752,-500.0,0.00014246,2]
[333238812,1721963451763,-1140.16,0.00014246,2]
[333238813,1721963451774,-500.0,0.00014246,2]
[333238814,1721963451785,-500.0,0.00014246,2]
[333238815,1721963451794,-500.0,0.00014246,2]
[333238816,1721963451804,-500.0,0.00014246,2]
[333238817,1721963451814,-500.0,0.00014246,2]
[333238818,1721963451824,-500.0,0.00014246,2]
[333238819,1721963451834,-500.0,0.00014246,2]
[333238820,1721963451843,-500.0,0.00014246,2]
[333238821,1721963451853,-500.0,0.00014246,2]
[333238822,1721963451862,-1165.66,0.00014246,2]
[333238823,1721963451872,-500.0,0.00014246,2]
[333238824,1721963451882,-500.0,0.00014246,2]
[333238825,1721963451893,-500.0,0.00014246,2]
[333238826,1721963451902,-1809.56,0.00014246,2]
[333238827,1721963451912,-500.0,0.00014246,2]
[333238828,1721963451921,-500.0,0.00014246,2]
[333238829,1721963451931,-507.93233707,0.00014246,2]
[333238830,1721963451941,-509.10282386,0.00014246,2]
[333238831,1721963451950,-500.0,0.00014246,2]
[333238832,1721963451960,-500.0,0.00014246,2]
[333238833,1721963451970,-989.23,0.00014246,2]
[333238834,1721963451982,-522.08,0.00014246,2]
[333238835,1721963451991,-500.0,0.00014246,2]
[333238836,1721963452001,-500.0,0.00014246,2]
[333238837,1721963452010,-500.0,0.00014246,2]
[333238838,1721963452020,-500.0,0.00014246,2]
[333238839,1721963452030,-510.76,0.00014246,2]
[333238840,1721963452039,-500.0,0.00014246,2]
[333238841,1721963452049,-769.2,0.00014246,2]
[333238842,1721963452059,-506.56656262,0.00014246,2]
[333238843,1721963452068,-500.0,0.00014246,2]
[333238844,1721963452078,-631.29,0.00014246,2]
[333238845,1721963452088,-824.49,0.00014246,2]
[333238846,1721963452098,-500.0,0.00014246,2]
[333238847,1721963452107,-301.067665,0.00014246,2]
[333238848,1721963452117,-301.067665,0.00014246,2]
[333238849,1721963452127,-301.067665,0.00014246,2]
[333238850,1721963452137,-301.067665,0.00014246,2]
[333238851,1721963452148,-301.067665,0.00014246,2]
[333238852,1721963452157,-301.067665,0.00014246,2]
[333238853,1721963452167,-501.88581582,0.00014246,2]
[333238854,1721963452176,-500.0,0.00014246,2]
[333238855,1721963452185,-500.0,0.00014246,2]
[333238856,1721963452196,-500.0,0.00014246,2]
[333238857,1721963452205,-500.0,0.00014246,2]
[333238858,1721963452215,-151.0,0.00014246,2]
[333238859,1721963452225,-155.159551,0.00014246,2]
[333238860,1721963452234,-1093.92,0.00014246,2]
[333238861,1721963452243,-500.0,0.00014246,2]
[333238862,1721963452253,-500.0,0.00014246,2]
[333238863,1721963452263,-500.0,0.00014246,2]
[333238864,1721963452272,-500.0,0.00014246,2]
[333238865,1721963452282,-500.0,0.00014246,2]
[333238866,1721963452291,-502.11512122,0.00014246,2]
[333238867,1721963452301,-697.73,0.00014246,2]
[333238868,1721963452310,-500.0,0.00014246,2]
[333238869,1721963452320,-500.0,0.00014246,2]
[333238870,1721963452330,-500.0,0.00014246,2]
[333238871,1721963452339,-500.0,0.00014246,2]
[333238872,1721963452349,-1162.93,0.00014246,2]
[333238873,1721963452359,-500.0,0.00014246,2]
[333238874,1721963452368,-503.17003554,0.00014246,2]
[333238875,1721963452378,-156.534773,0.00014246,2]
[333238876,1721963452388,-156.534773,0.00014246,2]
[333238877,1721963452400,-156.534773,0.00014246,2]
[333238878,1721963452409,-156.534773,0.00014246,2]
[333238879,1721963452419,-951.78,0.00014246,2]
[333238880,1721963452429,-500.0,0.00014246,2]
[333238881,1721963452439,-651.52,0.00014246,2]
[333238882,1721963452448,-500.0,0.00014246,2]
[333238883,1721963452458,-726.41,0.00014246,2]
[333238884,1721963452468,-500.0,0.00014246,2]
[333238885,1721963452477,-500.0,0.00014246,2]
[333238886,1721963452488,-629.81,0.00014246,2]
[333238887,1721963452497,-500.0,0.00014246,2]
[333238888,1721963452506,-500.0,0.00014246,2]
[333238889,1721963452516,-1197.1,0.00014246,2]
[333238890,1721963452526,-500.0,0.00014246,2]
[333238891,1721963452535,-500.0,0.00014246,2]
[333238892,1721963452544,-500.0,0.00014246,2]
[333238893,1721963452553,-500.0,0.00014246,2]
[333238894,1721963452562,-500.0,0.00014246,2]
[333238895,1721963452572,-500.0,0.00014246,2]
[333238896,1721963452581,-567.41,0.00014246,2]
[333238897,1721963452591,-845.63,0.00014246,2]
[333238898,1721963452601,-500.0,0.00014246,2]
[333238899,1721963452610,-500.0,0.00014246,2]
[333238900,1721963452619,-500.0,0.00014246,2]
[333238901,1721963452629,-500.0,0.00014246,2]
[333238902,1721963452641,-487.557975,0.00014246,2]
[333238903,1721963452650,-487.557975,0.00014246,2]
[333238904,1721963452661,-487.557975,0.00014246,2]
[333238905,1721963452670,-322.490081,0.00014246,2]
[333238906,1721963452680,-322.490081,0.00014246,2]
[333238907,1721963452690,-487.557975,0.00014246,2]
[333238908,1721963452699,-487.557975,0.00014246,2]
[333238909,1721963452709,-500.0,0.00014246,2]
[333238910,1721963452718,-487.557975,0.00014246,2]
[333238911,1721963452728,-322.490081,0.00014246,2]
[333238912,1721963452738,-322.490081,0.00014246,2]
[333238913,1721963452747,-500.0,0.00014246,2]
[333238914,1721963452756,-1076.02,0.00014246,2]
[333238915,1721963452766,-724.44,0.00014246,2]
[333238916,1721963452776,-923.91,0.00014246,2]
[333238917,1721963452786,-500.0,0.00014246,2]
[333238918,1721963452795,-500.0,0.00014246,2]
[333238919,1721963452804,-1279.74,0.00014246,2]
[333238920,1721963452814,-917.6,0.00014246,2]
[333238921,1721963452968,-557.75,0.00014246,2]